bitfinex/quotes_SOLUSD_20250722
["timestamp","ask_amount","ask_price","bid_price","bid_amount"]
[1753219371504,21.97888945,200.82,200.79,20.96]
[1753219371680,0.67,200.81,200.79,20.96]
[1753219372501,5.65003034,200.81,200.79,20.96]
[1753219373900,10.84423582,200.81,200.79,20.96]
[1753219375110,22.43426978,200.82,200.79,20.96]
[1753219375697,0.67,200.81,200.79,20.96]
[1753219375889,4.9798356,200.81,200.79,20.96]
[1753219378808,5.6498356,200.81,200.79,20.96]
[1753219379312,5.6498356,200.81,200.77,0.71]
[1753219379605,5.6498356,200.81,200.78,21.67]
[1753219382110,4.97962361,200.82,200.79,0.71]
[1753219382293,5.64962361,200.82,200.79,0.71]
[1753219382497,5.64962361,200.82,200.78,20.96]
[1753219382896,5.64962361,200.82,200.78,21.67]
[1753219385502,10.84382909,200.82,200.78,21.67]
[1753219386609,0.67,200.81,200.78,20.96]
[1753219388101,16.92684554,200.82,200.79,0.71]
[1753219388725,27.77072876,200.82,200.78,20.96]
[1753219389029,27.77072876,200.82,200.78,21.67]
[1753219394035,17.59684554,200.82,200.78,21.67]
[1753219394204,17.59684554,200.82,200.79,0.71]
[1753219395141,17.59684554,200.82,200.78,20.96]
[1753219395326,17.59684554,200.82,200.78,21.67]
[1753219395940,22.57654333,200.82,200.78,21.67]
[1753219398741,16.92684554,200.8,200.76,28.6]
[1753219398941,0.71,200.79,200.77,20.94]
[1753219399355,0.71,200.78,200.77,20.94]
[1753219399860,0.71,200.78,200.74,0.72]
[1753219400022,0.71,200.77,200.75,20.94]
[1753219400339,0.71,200.78,200.75,20.94]
[1753219401124,5.6908222,200.78,200.75,20.94]
[1753219401437,22.47550617,200.78,200.75,20.94]
[1753219401940,21.76550617,200.78,200.75,20.94]
[1753219402137,22.83105102,200.77,200.75,20.94]
[1753219402339,17.63684554,200.76,200.75,20.94]
[1753219403840,26.0,200.8,200.75,20.94]
[1753219404053,16.78468397,200.77,200.75,20.94]
[1753219404224,16.92684554,200.78,200.75,20.94]
[1753219404538,0.71,200.77,200.75,20.94]
[1753219404719,0.71,200.76,200.75,20.94]
[1753219405317,0.14216157,200.77,200.75,21.66]
[1753219405714,0.85216157,200.77,200.75,20.94]
[1753219406741,5.12305904,200.77,200.75,20.94]
[1753219407053,0.71,200.76,200.75,20.94]
[1753219407611,0.14216157,200.77,200.75,20.94]
[1753219407817,0.85216157,200.77,200.75,20.94]
[1753219409128,0.77,200.82,200.76,5.91420548]
[1753219409436,16.78468397,200.81,200.77,0.72]
[1753219409645,16.78468397,200.81,200.78,0.72]
[1753219409844,0.71,200.81,200.79,20.94]
[1753219411144,0.14216157,200.81,200.79,20.94]
[1753219411523,0.14216157,200.81,200.8,20.94]
[1753219412754,22.53430612,200.82,200.8,20.94]
[1753219412755,0.06,200.82,200.8,21.66]
[1753219412959,0.06,200.82,200.81,0.72]
[1753219413630,0.06,200.82,200.81,5.91420548]
[1753219415355,0.06,200.82,200.81,10.89403716]
[1753219417547,0.06,200.82,200.81,39.49403716]
[1753219422330,0.06,200.82,200.81,34.51420548]
[1753219424952,0.06,200.82,200.81,39.49403716]
[1753219428053,0.06,200.82,200.81,47.49553716]
[1753219428243,0.06,200.82,200.81,47.99352032]
[1753219431342,0.06,200.82,200.81,28.6]
[1753219431650,0.06,200.82,200.81,49.52]
[1753219431951,0.06,200.82,200.81,28.6]
[1753219432153,0.06,200.82,200.81,49.52]
[1753219432458,0.06,200.82,200.81,20.92]
[1753219438766,0.72,200.82,200.81,20.92]
[1753219439866,5.6995837,200.82,200.81,20.92]
[1753219440367,5.6995837,200.82,200.75,31.89420548]
[1753219440368,16.78468397,200.81,200.75,31.89420548]
[1753219440570,0.66,200.8,200.76,20.92]
[1753219440747,0.66,200.8,200.76,21.62]
[1753219441462,4.98022997,200.8,200.76,21.62]
[1753219441652,0.66,200.79,200.76,21.62]
[1753219443658,5.6404038,200.79,200.73,5.89420548]
[1753219443850,22.78105102,200.78,200.71,39.82940549]
[1753219444050,0.66,200.77,200.72,21.62]
[1753219444250,0.66,200.76,200.72,21.62]
[1753219444446,0.66,200.75,200.72,20.92]
[1753219444975,5.19420548,200.76,200.72,20.92]
[1753219445153,0.66,200.74,200.72,20.92]
[1753219445972,5.64161519,200.74,200.72,20.92]
[1753219449676,0.66,200.73,200.72,20.92]
[1753219450250,26.96020949,200.75,200.72,20.92]
[1753219450450,0.66,200.74,200.72,20.92]
[1753219452670,4.98170186,200.74,200.73,20.92]
[1753219453258,5.64170186,200.74,200.73,20.92]
[1753219454277,10.83590734,200.74,200.73,20.92]
[1753219456887,16.78468397,200.75,200.73,20.92]
[1753219457054,0.66,200.74,200.73,20.92]
[1753219459900,16.92684554,200.73,200.71,1e-08]
[1753219460104,22.12105102,200.73,200.72,20.92]
[1753219460303,27.77286739,200.73,200.72,20.92]
[1753219463487,22.57866191,200.73,200.72,20.92]
[1753219463787,27.77286739,200.73,200.72,20.92]
[1753219463996,0.14216157,200.73,200.72,20.92]
[1753219464157,16.92684554,200.75,200.72,21.59]
[1753219464563,5.19420548,200.77,200.73,0.67]
[1753219464765,16.78468397,200.77,200.73,5.86420548]
[1753219464968,16.78468397,200.77,200.74,0.67]
[1753219465178,17.45468397,200.77,200.74,0.67]
[1753219467587,21.76553206,200.77,200.74,0.67]
[1753219467796,22.43553206,200.77,200.74,0.67]
[1753219469003,0.06,200.79,200.75,5.19420548]
[1753219469203,16.84468397,200.79,200.76,21.59]
[1753219469496,17.51468397,200.79,200.76,21.59]
[1753219469906,22.49503931,200.79,200.76,20.92]
[1753219471000,0.67,200.78,200.76,20.92]
[1753219471682,17.59684554,200.77,200.76,20.92]
[1753219471873,22.57766936,200.77,200.76,20.92]
[1753219472691,21.90766936,200.77,200.76,20.92]
[1753219473304,22.57766936,200.77,200.76,20.92]
[1753219475383,22.63766936,200.77,200.76,20.92]
[1753219479598,0.14216157,200.75,200.74,20.92]
[1753219479901,22.79105102,200.75,200.74,20.92]
[1753219481500,42.92684554,200.72,200.71,1e-08]
[1753219481693,48.12105102,200.72,200.71,20.92000001]
[1753219482005,48.79105102,200.72,200.71,20.92000001]
[1753219483786,53.77311558,200.72,200.71,20.92000001]
[1753219486413,48.5789101,200.72,200.71,20.92000001]
[1753219487378,47.9089101,200.72,200.71,20.92000001]
[1753219488709,48.6189101,200.72,200.71,20.92000001]
[1753219490106,5.19420548,200.74,200.71,20.92000001]
[1753219490313,16.92684554,200.74,200.72,0.71]
[1753219490490,16.78468397,200.74,200.72,0.71]
[1753219490810,17.49468397,200.74,200.72,20.92]
[1753219492915,22.47629211,200.74,200.72,20.92]
[1753219493820,48.47629211,200.74,200.72,20.92]
[1753219494011,0.06,200.77,200.73,0.71]
[1753219494213,0.71,200.76,200.72,21.63]
[1753219494404,5.90420548,200.76,200.72,21.63]
[1753219494603,0.14216157,200.76,200.73,0.71]
[1753219495519,5.12335777,200.76,200.73,0.71]
[1753219496622,5.33636705,200.74,200.71,20.92000001]
[1753219496823,22.12105102,200.72,200.71,20.92000001]
[1753219496993,22.83105102,200.72,200.71,20.92000001]
[1753219497615,22.83105102,200.72,200.71,1e-08]
[1753219498637,27.81311558,200.72,200.71,1e-08]
[1753219502118,53.81311558,200.72,200.71,1e-08]
[1753219502322,22.6189101,200.72,200.71,1e-08]
[1753219502513,27.81311558,200.72,200.71,1e-08]
[1753219503225,26.96095401,200.72,200.71,1e-08]
[1753219503519,21.76674853,200.72,200.71,0.71000001]
[1753219503904,47.9089101,200.72,200.71,0.71000001]
[1753219504102,21.76674853,200.72,200.71,1e-08]
[1753219504324,16.78468397,200.73,200.71,0.71000001]
[1753219504522,16.78468397,200.73,200.71,1e-08]
[1753219504699,16.78468397,200.73,200.71,0.71000001]
[1753219505823,6.04636705,200.72,200.71,1e-08]
[1753219506623,5.33636705,200.72,200.71,1e-08]
[1753219506813,22.12105102,200.72,200.71,1e-08]
[1753219507014,22.83105102,200.72,200.71,1e-08]
[1753219507924,27.81311558,200.72,200.71,1e-08]
[1753219511101,27.10311558,200.72,200.71,1e-08]
[1753219511306,53.10311558,200.72,200.71,1e-08]
[1753219514516,27.81311558,200.72,200.71,1e-08]
[1753219520128,16.92684554,200.71,200.7,1e-08]
[1753219520331,28.0052565,200.71,200.7,1e-08]
[1753219520537,28.0052565,200.71,200.62,0.03]
[1753219520538,16.78468397,200.63,200.62,0.03]
[1753219520838,22.12105102,200.63,200.62,0.03]
[1753219521038,26.03112354,200.63,200.62,0.03]
[1753219521213,17.61684554,200.63,200.62,0.03]
[1753219521414,22.81105102,200.63,200.62,0.03]
[1753219521933,22.12105102,200.63,200.62,0.03]
[1753219522122,27.10535047,200.63,200.62,0.03]
[1753219523242,27.79535047,200.63,200.62,0.03]
[1753219524520,27.10535047,200.63,200.62,0.03]
[1753219525336,27.79535047,200.63,200.62,0.03]
[1753219526038,27.10535047,200.63,200.62,0.03]
[1753219530444,27.79535047,200.63,200.62,0.03]
[1753219530823,27.10535047,200.63,200.62,0.03]
[1753219531039,27.79535047,200.63,200.62,0.03]
[1753219532350,27.10535047,200.63,200.62,0.03]
[1753219532847,27.79535047,200.63,200.62,0.03]
[1753219536836,22.60114499,200.63,200.62,0.03]
[1753219537023,27.10535047,200.63,200.62,0.71]
[1753219538270,27.10535047,200.63,200.62,0.03]
[1753219538639,27.79535047,200.63,200.62,0.03]
[1753219542744,16.92684554,200.63,200.62,0.71]
[1753219543274,16.78468397,200.63,200.62,0.71]
[1753219543578,16.92684554,200.63,200.62,0.71]
[1753219544250,16.78468397,200.65,200.62,0.71]
[1753219544456,0.14216157,200.64,200.62,0.71]
[1753219548757,5.33636705,200.64,200.62,0.71]
[1753219549242,0.14216157,200.64,200.62,0.71]
[1753219551192,10.32051198,200.64,200.62,0.7]
[1753219551661,27.9752565,200.63,200.62,0.03]
[1753219551965,0.14216157,200.62,200.55,1.5388]
[1753219552137,5.19420548,200.56,200.55,1.5388]
[1753219552336,5.19420548,200.56,200.55,0.67]
[1753219554248,10.18024457,200.56,200.55,0.67]
[1753219555239,10.18024457,200.56,200.53,21.62]
[1753219555240,16.78468397,200.55,200.53,21.62]
[1753219555441,5.19420548,200.54,200.53,21.62]
[1753219556452,5.19420548,200.54,200.53,20.95]
[1753219556662,5.19420548,200.54,200.53,21.62]
[1753219557867,16.78468397,200.6,200.53,21.62]
[1753219558049,16.78468397,200.6,200.54,0.67]
[1753219558050,5.19420548,200.59,200.54,0.67]
[1753219558257,5.19420548,200.58,200.54,0.67]
[1753219559344,5.19420548,200.58,200.53,25.93670432]
[1753219559345,0.80216157,200.57,200.53,0.03]
[1753219559560,22.12105102,200.54,200.53,0.03]
[1753219560270,4.98579049,200.57,200.53,0.7]
[1753219560473,16.78468397,200.57,200.53,0.7]
[1753219560779,16.78468397,200.59,200.54,27.63280548]
[1753219561189,16.92684554,200.55,200.54,0.67]
[1753219561348,16.78468397,200.55,200.54,0.67]
[1753219561553,16.92684554,200.55,200.54,0.67]
[1753219562273,21.91313324,200.55,200.54,0.67]
[1753219562690,16.92684554,200.55,200.54,0.67]
[1753219563060,6.83376486,200.66,200.54,0.67]
[1753219563264,21.97888945,200.61,200.54,0.67]
[1753219563460,16.78468397,200.59,200.54,5.86420548]
[1753219563655,16.78468397,200.59,200.55,0.67]
[1753219563867,16.78468397,200.59,200.56,20.92]
[1753219564159,16.78468397,200.59,200.57,0.67]
[1753219565256,16.78468397,200.59,200.56,20.92]
[1753219565257,16.92684554,200.59,200.58,0.67]
[1753219565488,16.92684554,200.62,200.58,0.67]
[1753219565879,16.92684554,200.62,200.56,31.1001503]
[1753219566071,16.92684554,200.62,200.59,0.67]
[1753219566268,16.78468397,200.59,200.56,20.92]
[1753219566481,16.78468397,200.59,200.56,21.59]
[1753219566785,21.97888945,200.59,200.56,21.59]
[1753219567160,16.92684554,200.56,200.54,0.03]
[1753219567376,5.19420548,200.55,200.54,0.03]
[1753219567573,27.10733872,200.55,200.54,0.03]
[1753219568164,27.76733872,200.55,200.54,0.03]
[1753219568499,21.91313324,200.55,200.54,0.03]
[1753219570695,27.76733872,200.55,200.54,0.03]
[1753219571403,7.8709,200.71,200.54,5.89420548]
[1753219571693,11.50883653,200.7,200.64,5.19420548]
[1753219571893,15.8314483,200.7,200.64,5.19420548]
[1753219572105,10.17681725,200.7,200.65,0.67]
[1753219572266,16.92684554,200.69,200.65,0.67]
[1753219572694,0.06,200.72,200.65,10.84800812]
[1753219572897,5.04206921,200.72,200.65,10.84800812]
[1753219573106,5.04206921,200.72,200.65,5.86420548]
[1753219573411,16.92684554,200.71,200.65,5.86420548]
[1753219574072,21.76705619,200.71,200.65,5.86420548]
[1753219574268,4.98258861,200.7,200.65,5.86420548]
[1753219575404,0.06,200.72,200.65,10.84800812]
[1753219575581,0.06,200.72,200.65,19.09190812]
[1753219577692,0.06,200.72,200.68,26.0]
[1753219577895,0.06,200.72,200.71,5.19420548]
[1753219578201,0.06,200.72,200.71,12.31883675]
[1753219578379,0.06,200.72,200.71,12.99883675]
[1753219579593,0.06,200.72,200.71,17.98114953]
[1753219580795,0.06,200.72,200.71,7.3064]
[1753219580996,0.06,200.72,200.69,21.0]
[1753219581299,5.25420548,200.72,200.69,21.0]
[1753219581489,0.06,200.71,200.69,21.0]
[1753219581687,16.98684554,200.71,200.69,21.0]
[1753219582002,16.92684554,200.69,200.67,21.02]
[1753219582204,16.92684554,200.67,200.61,6.4943]
[1753219582392,5.19420548,200.65,200.62,21.02]
[1753219582580,5.19420548,200.65,200.6,21.55]
[1753219582581,5.86420548,200.65,200.6,21.55]
[1753219582776,5.65405103,200.64,200.61,21.04]
[1753219583196,4.98380298,200.65,200.61,21.04]
[1753219583386,9.01647904,200.66,200.61,21.72]
[1753219583601,25.13116301,200.63,200.6,0.03]
[1753219583902,17.59684554,200.65,200.6,0.03]
[1753219583903,8.34647904,200.62,200.6,0.03]
[1753219584111,9.01647904,200.62,200.6,0.03]
[1753219584709,0.67,200.61,200.6,0.03]
[1753219585005,30.98456399,200.62,200.6,0.03]
[1753219585206,4.98456399,200.62,200.6,0.03]
[1753219585396,51.94332458,200.61,200.6,0.03]
[1753219586692,56.92812095,200.61,200.6,0.03]
[1753219587707,43.59684554,200.61,200.6,0.03]
[1753219587918,16.78468397,200.65,200.6,9.05647904]
[1753219588121,16.78468397,200.65,200.61,30.08647904]
[1753219588690,8.48864061,200.65,200.6,0.03]
[1753219588986,0.14216157,200.62,200.6,0.03]
[1753219590213,0.67,200.64,200.6,0.03]
[1753219590416,16.78468397,200.65,200.63,8.34647904]
[1753219590619,0.14216157,200.65,200.62,8.34647904]
[1753219590829,16.84468397,200.66,200.62,30.10647904]
[1753219591035,26.06,200.66,200.65,8.34647904]
[1753219591186,0.06,200.66,200.65,8.34647904]
[1753219591586,0.06,200.66,200.65,9.02647904]
[1753219591787,0.06,200.71,200.65,9.02647904]
[1753219592025,0.06,200.71,200.7,8.34647904]
[1753219592188,0.06,200.71,200.7,34.40904007]
[1753219592386,0.06,200.71,200.7,41.16724007]
[1753219593195,0.06,200.76,200.71,8.34647904]
[1753219593515,0.06,200.76,200.71,9.02647904]
[1753219594084,0.06,200.76,200.74,26.0]
[1753219594286,0.06,200.76,200.74,39.82620404]
[1753219594515,0.06,200.76,200.74,40.50620404]
[1753219594700,0.06,200.76,200.74,48.85268308]
[1753219595008,0.06,200.76,200.74,77.45268307]
[1753219595312,0.06,200.77,200.74,77.45268307]
[1753219595524,0.06,200.77,200.76,16.69295808]
[1753219595684,0.06,200.77,200.76,47.05106527]
[1753219595887,0.06,200.77,200.76,47.73106527]
[1753219596106,0.06,200.77,200.76,68.85106527]
[1753219596307,0.06,200.77,200.76,73.83213719]
[1753219596519,0.06,200.79,200.78,8.34647904]
[1753219596810,0.06,200.79,200.78,29.46647904]
[1753219596983,0.06,200.79,200.78,21.8]
[1753219597389,0.06,200.79,200.78,21.12]
[1753219598623,0.06,200.79,200.76,8.34647904]
[1753219598802,0.06,200.79,200.77,21.12]
[1753219598999,0.06,200.79,200.78,21.1]
[1753219599000,0.73,200.79,200.78,21.1]
[1753219599209,0.06,200.79,200.78,21.1]
[1753219599515,0.06,200.79,200.64,4.982]
[1753219599691,0.14216157,200.75,200.7,8.34647904]
[1753219599893,0.14216157,200.75,200.71,21.12]
[1753219600105,0.67,200.77,200.71,21.8]
[1753219600426,16.92684554,200.78,200.72,13.32854223]
[1753219600600,16.92684554,200.78,200.72,8.34647904]
[1753219600910,21.90745548,200.78,200.72,8.34647904]
[1753219601231,16.92684554,200.78,200.72,13.32850125]
[1753219601401,16.92684554,200.78,200.72,8.34647904]
[1753219601603,16.92684554,200.78,200.71,35.12875742]
[1753219601807,25.27332458,200.78,200.71,35.12875742]
[1753219602002,30.25390376,200.78,200.71,35.12875742]
[1753219602200,8.34647904,200.74,200.68,0.68]
[1753219602403,16.78468397,200.73,200.69,21.14]
[1753219602618,16.78468397,200.74,200.69,21.14]
[1753219602830,17.59684554,200.74,200.69,21.14]
[1753219603041,13.3278108,200.75,200.69,21.14]
[1753219603042,0.14216157,200.75,200.7,0.68]
[1753219603200,0.14216157,200.73,200.69,21.14]
[1753219603397,16.92684554,200.71,200.69,21.14]
[1753219604113,0.14216157,200.71,200.7,21.14]
[1753219604321,8.48864061,200.71,200.7,21.14]
[1753219604503,13.47095339,200.71,200.7,21.14]
[1753219604711,14.14095339,200.71,200.7,21.14]
[1753219604928,5.79447435,200.71,200.65,0.03]
[1753219605125,5.79447435,200.71,200.66,21.14]
[1753219605328,5.12447435,200.71,200.66,21.14]
[1753219605536,0.67,200.7,200.66,21.14]
[1753219605836,5.12447435,200.71,200.66,30.16647904]
[1753219605837,0.81216157,200.71,200.66,30.16647904]
[1753219606016,17.59684554,200.71,200.66,30.16647904]
[1753219607404,17.59684554,200.71,200.66,35.15002779]
[1753219607610,16.92684554,200.71,200.67,0.71]
[1753219609110,0.71,200.73,200.67,5.69326598]
[1753219609307,16.92684554,200.72,200.67,5.69326598]
[1753219609504,0.14216157,200.72,200.68,0.71]
[1753219609731,16.78468397,200.76,200.69,0.71]
[1753219609926,0.14216157,200.75,200.7,8.34647904]
[1753219610128,0.14216157,200.75,200.71,21.14]
[1753219611829,0.85216157,200.75,200.71,21.14]
[1753219612419,0.06,200.79,200.74,8.34647904]
[1753219612723,0.06,200.79,200.78,13.32705479]
[1753219613031,0.06,200.82,200.81,26.0]
[1753219613209,0.06,200.82,200.81,34.34647904]
[1753219613404,0.06,200.82,200.81,35.05647904]
[1753219614327,0.06,200.82,200.81,56.23647904]
[1753219615122,0.06,200.82,200.81,61.21631072]
[1753219618521,0.06,200.82,200.81,89.81631071]
[1753219619536,0.06,200.82,200.81,81.46983167]
[1753219619717,0.06,200.82,200.81,89.81631071]
[1753219621728,0.06,200.82,200.81,81.46983167]
[1753219621928,0.06,200.82,200.81,89.81631071]
[1753219624640,0.06,200.82,200.81,91.41361071]
[1753219625024,0.06,200.84,200.81,121.27361071]
[1753219625232,0.06,200.86,200.85,26.0]
[1753219625550,0.06,200.86,200.85,55.48647904]
[1753219625726,0.06,200.86,200.85,56.19647904]
[1753219626443,0.06,200.86,200.85,89.77531896]
[1753219630041,0.06,200.86,200.85,21.12]
[1753219655350,0.06,200.86,200.85,21.79]
[1753219655675,0.06,200.86,200.85,21.12]
[1753219657153,0.06,200.86,200.85,21.79]
[1753219657553,0.06,200.86,200.85,21.12]
[1753219658874,0.06,200.86,200.85,21.79]
[1753219663583,0.06,200.86,200.85,21.12]
[1753219664872,0.75,200.86,200.85,21.12]
[1753219667372,10.93293323,200.86,200.84,0.03]
[1753219667559,27.85977877,200.86,200.85,20.98]
[1753219669066,22.65543759,200.86,200.85,20.98]
[1753219670880,0.06,200.86,200.85,20.98]
[1753219671075,0.06,200.86,200.85,21.66]
[1753219674978,0.06,200.86,200.85,31.84318111]
[1753219680897,0.06,200.86,200.85,60.4431811]
[1753219693692,0.06,200.86,200.85,60.94106509]
[1753219693891,0.01289712,200.86,200.85,60.94106509]
[1753219695596,0.01289712,200.86,200.85,67.23656509]
[1753219697297,0.01289712,200.86,200.85,102.07856509]
[1753219697500,0.01289712,200.86,200.85,96.5986811]
[1753219697713,0.06,200.87,200.85,96.5986811]
[1753219697714,1e-08,200.87,200.86,58.45999999]
[1753219697900,1e-08,200.87,200.86,78.61434117]
[1753219698392,1e-08,200.87,200.86,79.31434117]
[1753219698716,1e-08,200.87,200.86,79.81220037]
[1753219699815,1e-08,200.87,200.86,84.79079242]
[1753219700914,1e-08,200.88,200.87,63.43834418]
[1753219701218,1e-08,200.88,200.87,100.28268536]
[1753219701604,1e-08,200.88,200.87,100.78051978]
[1753219702012,1e-08,200.88,200.87,132.51520375]
[1753219702314,1e-08,200.88,200.87,132.1595309]
[1753219703808,0.06,200.91,200.9,26.0]
[1753219704004,0.06,200.91,200.9,52.14434118]
[1753219704406,0.06,200.91,200.9,52.84434118]
[1753219705026,0.06,200.91,200.9,57.82194197]
[1753219707312,0.06,200.91,200.9,116.28194195]
[1753219709835,0.06,200.91,200.9,116.26194195]
[1753219711130,0.06,200.91,200.9,114.38472623]
[1753219711306,0.06,200.91,200.9,80.49760077]
[1753219711800,0.72,200.91,200.9,54.49760077]
[1753219712620,0.06,200.91,200.9,54.49760077]
[1753219713006,0.72,200.91,200.9,28.59999998]
[1753219713206,0.72,200.91,200.9,49.51999998]
[1753219716208,0.72,200.91,200.9,20.92]
[1753219721838,0.06,200.91,200.9,24.24712546]
[1753219722024,0.06,200.91,200.9,24.94712546]
[1753219722221,0.06,200.91,200.9,53.54712544]
[1753219722414,0.06,200.91,200.9,52.84712544]
[1753219723133,0.06,200.91,200.9,54.49760077]
[1753219723332,0.72,200.91,200.9,49.51999998]
[1753219727126,0.06,200.91,200.9,54.49760077]
[1753219727323,0.06,200.91,200.9,57.82472623]
[1753219728132,0.06,200.91,200.9,58.48472623]
[1753219729425,0.06,200.91,200.9,57.82472623]
[1753219730326,0.06,200.91,200.9,54.49760077]
[1753219731443,4.09712546,200.91,200.85,0.03]
[1753219731643,4.03712546,200.9,200.85,0.03]
[1753219731827,4.03712546,200.9,200.86,20.92]
[1753219732151,0.71,200.89,200.86,20.92]
[1753219732442,5.0375006,200.91,200.86,29.22571301]
[1753219732443,0.71,200.88,200.86,29.22571301]
[1753219732620,0.06,200.91,200.86,29.22571301]
[1753219732824,0.71,200.9,200.86,29.22571301]
[1753219733325,0.71,200.89,200.86,29.22571301]
[1753219735745,0.06,200.91,200.88,3.32712546]
[1753219736053,0.77,200.91,200.89,20.92]
[1753219736230,0.71,200.9,200.89,20.92]
[1753219737950,4.03712546,200.9,200.89,20.92]
[1753219738741,9.01472625,200.9,200.89,20.92]
[1753219738954,22.61444633,200.9,200.89,20.92]
[1753219739250,25.94157179,200.9,200.89,20.92]
[1753219741138,27.81914215,200.9,200.89,20.92]
[1753219741541,22.61444633,200.9,200.89,20.92]
[1753219741748,17.63684554,200.9,200.89,20.92]
[1753219742058,27.81914215,200.9,200.89,20.92]
[1753219742632,22.61444633,200.9,200.89,20.92]
[1753219742833,27.81914215,200.9,200.89,20.92]
[1753219743534,22.61444633,200.9,200.89,20.92]
[1753219743731,27.81914215,200.9,200.89,20.92]
[1753219744458,22.84154136,200.9,200.89,20.92]
[1753219745662,17.63684554,200.9,200.89,20.92]
[1753219745952,22.84154136,200.9,200.89,20.92]
[1753219746848,17.63684554,200.9,200.89,20.92]
[1753219749339,0.06,200.91,200.89,20.92]
[1753219749666,0.77,200.91,200.89,20.92]
[1753219750270,0.06,200.91,200.89,20.92]
[1753219750561,0.71,200.9,200.89,20.92]
[1753219758076,0.77,200.9,200.89,20.92]
[1753219761876,0.06,200.9,200.89,20.92]
[1753219764078,0.77,200.9,200.89,20.92]
[1753219764264,17.69684554,200.9,200.89,20.92]
[1753219769468,26.00419989,200.9,200.89,20.92]
[1753219769848,17.69684554,200.9,200.89,20.92]
[1753219770449,16.92684554,200.89,200.88,0.03]
[1753219770655,16.92684554,200.89,200.85,0.03]
[1753219770656,20.9665991,200.89,200.85,0.03]
[1753219770879,20.2565991,200.86,200.85,0.03]
[1753219771269,25.23519115,200.86,200.85,0.03]
[1753219771474,25.94519115,200.86,200.85,0.03]
[1753219773178,53.82377386,200.86,200.85,0.03]
[1753219778258,16.92684554,200.85,200.84,1e-08]
[1753219778467,22.84518181,200.85,200.84,1e-08]
[1753219778664,22.84518181,200.85,200.8,0.03]
[1753219778979,22.13518181,200.81,200.8,0.03]
[1753219779365,22.84518181,200.81,200.8,0.03]
[1753219779593,27.82501349,200.81,200.8,0.03]
[1753219781275,53.82501349,200.81,200.8,0.03]
[1753219784191,53.68285192,200.81,200.8,0.03]
[1753219784395,53.82501349,200.81,200.8,0.03]
[1753219788902,27.82501349,200.81,200.8,0.03]
[1753219789596,27.82501349,200.81,200.8,1e-08]
[1753219800310,22.61667722,200.81,200.8,1e-08]
[1753219800483,27.82501349,200.81,200.8,1e-08]
[1753219802012,53.79501349,200.81,200.8,1e-08]
[1753219802380,53.11501349,200.81,200.8,1e-08]
[1753219802807,53.79501349,200.81,200.8,1e-08]
[1753219805987,53.79501349,200.81,200.79,1e-08]
[1753219805988,16.92684554,200.8,200.79,1e-08]
[1753219806224,28.02351808,200.8,200.79,1e-08]
[1753219806522,28.02351808,200.8,200.75,0.03]
[1753219806692,22.13518181,200.76,200.75,0.03]
[1753219807205,22.81518181,200.76,200.75,0.03]
[1753219807721,27.79625373,200.76,200.75,0.03]
[1753219809122,27.79625373,200.76,200.75,1e-08]
[1753219810812,31.78127711,200.76,200.75,1e-08]
[1753219814420,31.78127711,200.76,200.71,0.03]
[1753219814711,48.13518181,200.72,200.71,1e-08]
[1753219814895,53.11724637,200.72,200.71,1e-08]
[1753219815101,53.79724637,200.72,200.71,1e-08]
[1753219817314,0.14216157,200.71,200.66,0.71]
[1753219817617,22.13518181,200.67,200.66,0.71]